fUST/lending_fUST_20250718
["ID","MTS","AMOUNT","RATE_DAILY","PERIOD"]
[372906107,1752799846377,-658.62,0.00020821,2]
[372906109,1752799846387,-463.89,0.00020821,2]
[372906110,1752799846396,-1090.61,0.00020821,2]
[372906111,1752799846406,-151.0,0.00020821,2]
[372906112,1752799846415,-497.83,0.00020821,2]
[372906113,1752799846425,-460.0,0.00020821,2]
[372906114,1752799846435,-1291.63,0.00020821,2]
[372906116,1752799846445,-460.0,0.00020821,2]
[372906118,1752799846460,-1062.63,0.00020821,2]
[372906120,1752799846475,-2043.22,0.00020821,2]
[372906122,1752799846485,-532.87,0.00020821,2]
[372906125,1752799846496,-151.0,0.00020821,2]
[372906127,1752799846506,-460.0,0.00020821,2]
[372906129,1752799846515,-813.8,0.00020821,2]
[372906130,1752799846525,-191.188073,0.00020821,2]
[372906131,1752799846535,-191.188073,0.00020821,2]
[372906132,1752799846544,-3377.99,0.00020821,2]
[372906133,1752799846555,-764.54,0.00020821,2]
[372906134,1752799846565,-500.0,0.00020853,2]
[372906135,1752799846576,-689.0,0.00020853,2]
[372906136,1752799846586,-151.0,0.00020995,2]
[372906137,1752799846595,-151.0,0.00020995,2]
[372906138,1752799846605,-1181.723145,0.00020995,2]
[372906139,1752799846615,-1181.723145,0.00020995,2]
[372906140,1752799846624,-1113.33,0.00020995,2]
[372906141,1752799846634,-240.201303,0.00020995,2]
[372906142,1752799846644,-151.0,0.00020995,2]
[372906143,1752799846654,-715.4,0.00020995,2]
[372906144,1752799846664,-151.0,0.00020995,2]
[372906145,1752799846675,-156.006119,0.00020995,2]
[372906146,1752799846688,-156.006119,0.00020995,2]
[372906147,1752799846699,-151.0,0.00021,3]
[372906148,1752799846709,-151.0,0.00021,4]
[372906149,1752799846718,-483.3,0.00021095,2]
[372906150,1752799846729,-1075.73,0.00021095,2]
[372906151,1752799846739,-1005.51,0.00021095,2]
[372906152,1752799846748,-1962.27,0.00021095,2]
[372906153,1752799846758,-2067.61,0.00021095,2]
[372906154,1752799846769,-658.62,0.00021095,2]
[372906155,1752799846778,-463.89,0.00021095,2]
[372906156,1752799846789,-1090.61,0.00021095,2]
[372906157,1752799846801,-497.83,0.00021095,2]
[372906158,1752799846810,-460.0,0.00021095,2]
[372906159,1752799846820,-1291.63,0.00021095,2]
[372906160,1752799846830,-460.0,0.00021095,2]
[372906161,1752799846840,-1062.63,0.00021095,2]
[372906162,1752799846849,-2043.22,0.00021095,2]
[372906163,1752799846861,-151.0,0.00021095,2]
[372906164,1752799846872,-532.87,0.00021095,2]
[372906165,1752799846881,-460.0,0.00021095,2]
[372906166,1752799846891,-813.8,0.00021095,2]
[372906167,1752799846901,-151.0,0.00021095,2]
[372906168,1752799846911,-151.0,0.00021095,2]
[372906169,1752799846921,-3377.99,0.00021095,2]
[372906170,1752799846930,-764.54,0.00021095,2]
[372906171,1752799846940,-811.02306197,0.00021104,2]
[372906172,1752799846949,-500.0,0.00021127,2]
[372906173,1752799846959,-689.0,0.00021127,2]
[372906174,1752799846969,-5000.0,0.00021137,2]
[372906175,1752799846978,-1439.61129952,0.00021155,2]
[372906176,1752799846988,-160.0,0.00021165,3]
[372906177,1752799846998,-160.0,0.00021165,5]
[372906178,1752799847007,-1113.33,0.00021269,2]
[372906179,1752799847017,-715.4,0.00021269,2]
[372906180,1752799847027,-483.3,0.00021369,2]
[372906181,1752799847036,-622.12166008,0.00021369,2]
[372906182,1752799847125,-446.2542779,0.00021369,2]
[372906183,1752799847137,-7.35406202,0.00021369,2]
[372906184,1752799847147,-1005.51,0.00021369,2]
[372906185,1752799847156,-1962.27,0.00021369,2]
[372906186,1752799847165,-2067.61,0.00021369,2]
[372906187,1752799847175,-658.62,0.00021369,2]
[372906188,1752799847184,-463.89,0.00021369,2]
[372906189,1752799847193,-1090.61,0.00021369,2]
[372906190,1752799847203,-497.83,0.00021369,2]
[372906191,1752799847213,-156.3,0.00021369,2]
[372906192,1752799847222,-1291.63,0.00021369,2]
[372906193,1752799847232,-460.0,0.00021369,2]
[372906194,1752799847242,-1062.63,0.00021369,2]
[372906195,1752799847252,-1053.88611447,0.00021369,2]
[372906196,1752799847542,-822.16,0.00021369,2]
[372906198,1752799854578,316.082252,0.00013699,2]
[372906207,1752800919419,24900.0,0.00015609,2]
[372906212,1752800933493,300.278139,0.00013699,2]
[372906213,1752800952135,-312.56454404,0.00016338,2]
[372906214,1752800952156,-1200.0,0.00016437,2]
[372906215,1752800952176,-1129.10170452,0.00016437,2]
[372906256,1752801032377,-70.89829548,0.00016437,2]
[372906257,1752801032387,-300.0,0.00016437,2]
[372906258,1752801032398,-904.0,0.00016437,2]
[372906259,1752801032407,-460.0,0.00016438,2]
[372906260,1752801032416,-460.0,0.00016438,2]
[372906261,1752801032426,-460.0,0.00016438,2]
[372906262,1752801032435,-236.25434075,0.00016438,2]
[372906263,1752801032485,-229.2491685,0.00016438,2]
[372906264,1752801032495,-460.0,0.00016438,2]
[372906265,1752801032505,-460.0,0.00016438,2]
[372906266,1752801032515,-460.0,0.00016438,2]
[372906267,1752801032525,-460.0,0.00016438,2]
[372906268,1752801032534,-460.0,0.00016438,2]
[372906270,1752801032543,-360.36331715,0.00016438,2]
[372906272,1752801032552,-460.87966923,0.00016438,2]
[372906274,1752801032562,-460.0,0.00016438,2]
[372906276,1752801032573,-209.09007417,0.00016438,2]
[372906302,1752801038533,-250.90992583,0.00016438,2]
[372906303,1752801038544,-460.0,0.00016438,2]
[372906304,1752801038554,-460.0,0.00016438,2]
[372906305,1752801038565,-460.0,0.00016438,2]
[372906306,1752801038582,-460.0,0.00016438,2]
[372906307,1752801038592,-343.59730492,0.00016438,2]
[372906308,1752801038603,-460.0,0.00016438,2]
[372906309,1752801038613,-594.18,0.00016438,2]
[372906310,1752801038622,-460.0,0.00016438,2]
[372906311,1752801038634,-460.0,0.00016438,2]
[372906312,1752801038643,-273.13710044,0.00016438,2]
[372906313,1752801038652,-420.0,0.00016438,2]
[372906314,1752801038661,-460.0,0.00016438,2]
[372906319,1752801038671,-460.0,0.00016438,2]
[372906323,1752801038853,-460.0,0.00016438,2]
[372906324,1752801038863,-460.0,0.00016438,2]
[372906325,1752801038874,-565.14,0.00016438,2]
[372906326,1752801038884,-460.0,0.00016438,2]
[372906328,1752801038893,-2814.99,0.00016438,2]
[372906329,1752801038903,-460.0,0.00016438,2]
[372906330,1752801038913,-460.0,0.00016438,2]
[372906331,1752801038922,-460.0,0.00016438,2]
[372906332,1752801038933,-460.0,0.00016438,2]
[372906333,1752801038943,-460.0,0.00016438,2]
[372906334,1752801038952,-460.78760463,0.00016438,2]
[372906335,1752801038961,-226.60121521,0.00016438,2]
[372906336,1752801038974,-927.78,0.00016438,2]
[372906337,1752801038983,-460.0,0.00016438,2]
[372906338,1752801038993,-851.88,0.00016438,2]
[372906339,1752801039002,-460.0,0.00016438,2]
[372906340,1752801039011,-460.0,0.00016438,2]
[372906341,1752801039020,-460.0,0.00016438,2]
[372906342,1752801039030,-1490.86,0.00016438,2]
[372906343,1752801039039,-500.0,0.00016438,2]
[372906344,1752801039048,-460.0,0.00016438,2]
[372906345,1752801039058,-460.0,0.00016438,2]
[372906346,1752801039068,-460.0,0.00016438,2]
[372906347,1752801039079,-1681.07,0.00016438,2]
[372906348,1752801039089,-460.0,0.00016438,2]
[372906349,1752801039099,-460.0,0.00016438,2]
[372906350,1752801039108,-460.0,0.00016438,2]
[372906351,1752801039118,-815.19,0.00016438,2]
[372906352,1752801039127,-460.0,0.00016438,2]
[372906353,1752801039137,-460.0,0.00016438,2]
[372906354,1752801039146,-418.9788472,0.00016438,2]
[372906355,1752801039155,-460.0,0.00016438,2]
[372906356,1752801039165,-460.0,0.00016438,2]
[372906357,1752801039174,-460.0,0.00016438,2]
[372906358,1752801039184,-596.16,0.00016438,2]
[372906359,1752801039193,-460.0,0.00016438,2]
[372906360,1752801039203,-837.12,0.00016438,2]
[372906361,1752801039212,-460.0,0.00016438,2]
[372906362,1752801039222,-460.0,0.00016438,2]
[372906363,1752801039231,-460.0,0.00016438,2]
[372906364,1752801039240,-460.0,0.00016438,2]
[372906365,1752801039251,-987.89,0.00016438,2]
[372906366,1752801039261,-590.30261268,0.00016438,2]
[372906367,1752801039272,-460.0,0.00016438,2]
[372906368,1752801039282,-460.0,0.00016438,2]
[372906369,1752801039293,-460.0,0.00016438,2]
[372906370,1752801039303,-460.0,0.00016438,2]
[372906371,1752801039313,-460.0,0.00016438,2]
[372906372,1752801039327,-460.0,0.00016438,2]
[372906373,1752801039337,-460.0,0.00016438,2]
[372906374,1752801039347,-460.0,0.00016438,2]
[372906375,1752801039357,-460.0,0.00016438,2]
[372906376,1752801039367,-460.0,0.00016438,2]
[372906377,1752801039376,-460.0,0.00016438,2]
[372906378,1752801039390,-460.0,0.00016438,2]
[372906379,1752801039400,-278.14,0.00016438,2]
[372906380,1752801039410,-460.0,0.00016438,2]
[372906381,1752801039420,-460.0,0.00016438,2]
[372906382,1752801039430,-460.0,0.00016438,2]
[372906383,1752801039439,-1268.78697264,0.00016438,2]
[372906384,1752801039453,-193.86302736,0.00016438,2]
[372906385,1752801039462,-460.0,0.00016438,2]
[372906386,1752801039472,-530.94,0.00016438,2]
[372906387,1752801039482,-1539.38,0.00016438,2]
[372906388,1752801039493,-460.0,0.00016438,2]
[372906389,1752801039503,-460.0,0.00016438,2]
[372906390,1752801039512,-460.0,0.00016438,2]
[372906391,1752801039521,-329.12962109,0.00016438,2]
[372906392,1752801039534,-130.87037891,0.00016438,2]
[372906393,1752801039543,-460.0,0.00016438,2]
[372906394,1752801039553,-460.0,0.00016438,2]
[372906395,1752801039563,-379.38,0.00016438,2]
[372906396,1752801039577,-460.0,0.00016438,2]
[372906397,1752801039587,-369.96608169,0.00016438,2]
[372906398,1752801039599,-90.03391831,0.00016438,2]
[372906399,1752801039609,-460.0,0.00016438,2]
[372906400,1752801039618,-460.0,0.00016438,2]
[372906401,1752801039628,-460.0,0.00016438,2]
[372906402,1752801039639,-201.95298509,0.00016438,2]
[372906403,1752801039652,-258.04701491,0.00016438,2]
[372906404,1752801039664,-460.0,0.00016438,2]
[372906405,1752801039675,-460.0,0.00016438,2]
[372906406,1752801039684,-460.0,0.00016438,2]
[372906407,1752801039695,-605.26,0.00016438,2]
[372906408,1752801039704,-460.0,0.00016438,2]
[372906409,1752801039714,-860.42,0.00016438,2]
[372906410,1752801039724,-391.6859085,0.00016438,2]
[372906432,1752801040476,-68.3140915,0.00016438,2]
[372906433,1752801040488,-460.61725283,0.00016438,2]
[372906434,1752801040497,-460.0,0.00016438,2]
[372906435,1752801040507,-663.42,0.00016438,2]
[372906436,1752801040516,-460.0,0.00016438,2]
[372906437,1752801040525,-460.0,0.00016438,2]
[372906438,1752801040534,-460.0,0.00016438,2]
[372906439,1752801040543,-460.0,0.00016438,2]
[372906440,1752801040553,-460.0,0.00016438,2]
[372906441,1752801040562,-277.78772527,0.00016438,2]
[372906442,1752801040577,-182.21227473,0.00016438,2]
[372906444,1752801040586,-296.1077502,0.00016438,2]
[372906445,1752801040595,-431.34376153,0.00016438,2]
[372906446,1752801040607,-28.65623847,0.00016438,2]
[372906447,1752801040616,-460.0,0.00016438,2]
[372906448,1752801040626,-460.0,0.00016438,2]
[372906449,1752801040635,-500.0,0.0001651,2]
[372906450,1752801040644,-500.0,0.0001651,2]
[372906451,1752801040653,-500.0,0.0001651,2]
[372906452,1752801040662,-323.05751277,0.0001651,2]
[372906453,1752801040671,-21216.23691545,0.00016511,2]
[372906522,1752801043428,-781.23,0.00016438,2]
[372906524,1752801043437,-2318.77,0.00016511,2]
[372906567,1752801046443,-36153.73128791,0.00016511,2]
[372906568,1752801046453,-387.16,0.00016702,3]
[372906569,1752801046463,-266.26419911,0.00016712,2]
[372906570,1752801046474,-460.0,0.00016712,2]
[372906571,1752801046485,-460.0,0.00016712,2]
[372906572,1752801046495,-460.0,0.00016712,2]
[372906573,1752801046506,-460.0,0.00016712,2]
[372906574,1752801046517,-2814.99,0.00016712,2]
[372906575,1752801046526,-460.0,0.00016712,2]
[372906577,1752801046536,-927.78,0.00016712,2]
[372906578,1752801046546,-851.88,0.00016712,2]
[372906579,1752801046556,-388.12915736,0.00016712,2]
[372906581,1752801046565,-1490.86,0.00016712,2]
[372906583,1752801046580,-1681.07,0.00016712,2]
[372906584,1752801046590,-460.0,0.00016712,2]
[372906585,1752801046600,-460.0,0.00016712,2]
[372906586,1752801046611,-465.1845957,0.00016712,2]
[372906587,1752801046622,-460.0,0.00016712,2]
[372906589,1752801046632,-460.0,0.00016712,2]
[372906590,1752801046642,-596.16,0.00016712,2]
[372906591,1752801046651,-460.0,0.00016712,2]
[372906592,1752801046662,-837.12,0.00016712,2]
[372906593,1752801046672,-460.0,0.00016712,2]
[372906594,1752801046681,-460.0,0.00016712,2]
[372906595,1752801046691,-987.89,0.00016712,2]
[372906596,1752801046700,-460.0,0.00016712,2]
[372906597,1752801046714,-460.0,0.00016712,2]
[372906598,1752801046723,-460.0,0.00016712,2]
[372906599,1752801046734,-460.0,0.00016712,2]
[372906600,1752801046744,-1462.65,0.00016712,2]
[372906601,1752801046754,-460.0,0.00016712,2]
[372906602,1752801046766,-1539.38,0.00016712,2]
[372906603,1752801046775,-460.0,0.00016712,2]
[372906604,1752801046786,-460.0,0.00016712,2]
[372906605,1752801046795,-460.0,0.00016712,2]
[372906606,1752801046804,-597.08,0.00016712,2]
[372906607,1752801046814,-460.0,0.00016712,2]
[372906608,1752801046823,-411.35011707,0.00016712,2]
[372906609,1752801046836,-605.26,0.00016712,2]
[372906610,1752801046845,-860.42,0.00016712,2]
[372906611,1752801046855,-663.42,0.00016712,2]
[372906612,1752801046864,-460.0,0.00016712,2]
[372906613,1752801046874,-460.0,0.00016712,2]
[372906614,1752801046883,-781.23,0.00016712,2]
[372906615,1752801046894,-460.0,0.00016986,2]
[372906616,1752801046903,-460.0,0.00016986,2]
[372906617,1752801046913,-460.0,0.00016986,2]
[372906618,1752801046922,-460.0,0.00016986,2]
[372906619,1752801046933,-2814.99,0.00016986,2]
[372906620,1752801046945,-335.07587448,0.00016986,2]
[372906621,1752801054393,2000.0,0.00016,2]
[372906624,1752801119816,1000.0,0.00027,120]
[372906626,1752801372789,447.67811266,0.00027,120]
[372906627,1752801409551,199.999999,0.00027,120]
[372906629,1752801884106,3870.87929763,0.00015431,2]
[372906630,1752801884130,21029.12070237,0.00015431,2]
[372906631,1752801933527,285.264232,0.00013699,2]
[372906650,1752802227791,150.0,0.00015655,2]
[372906703,1752802232697,-273.49397607,0.00016338,2]
[372906704,1752802232708,-1200.0,0.00016409,2]
[372906705,1752802232717,-300.0,0.0001641,2]
[372906706,1752802232727,-300.0,0.0001641,2]
[372906707,1752802232736,-300.0,0.0001641,2]
[372906708,1752802232746,-1866.52976812,0.00016411,2]
[372906709,1752802232787,-18133.47023188,0.00016411,2]
[372906710,1752802232796,-200.0,0.00016437,2]
[372906711,1752802232806,-500.0,0.00016437,2]
[372906712,1752802232815,-500.0,0.00016437,2]
[372906713,1752802232824,-276.14025894,0.00016437,2]
[372906714,1752802232834,-460.0,0.00016438,2]
[372906715,1752802232843,-460.0,0.00016438,2]
[372906716,1752802232854,-460.0,0.00016438,2]
[372906717,1752802232864,-460.0,0.00016438,2]
[372906718,1752802232873,-460.0,0.00016438,2]
[372906719,1752802232883,-419.97,0.00016438,2]
[372906720,1752802232892,-460.0,0.00016438,2]
[372906721,1752802232902,-460.0,0.00016438,2]
[372906722,1752802232911,-460.0,0.00016438,2]
[372906723,1752802232920,-460.0,0.00016438,2]
[372906724,1752802232930,-468.18712179,0.00016438,2]
[372906726,1752802232939,-460.0,0.00016438,2]
[372906728,1752802232949,-460.0,0.00016438,2]
[372906730,1752802232959,-460.0,0.00016438,2]
[372906731,1752802232968,-460.0,0.00016438,2]
[372906732,1752802232977,-501.33783946,0.00016438,2]
[372906733,1752802232986,-460.0,0.00016438,2]
[372906734,1752802232996,-460.0,0.00016438,2]
[372906735,1752802233006,-460.0,0.00016438,2]
[372906736,1752802233015,-460.0,0.00016438,2]
[372906737,1752802233025,-460.0,0.00016438,2]
[372906738,1752802233035,-460.0,0.00016438,2]
[372906739,1752802233044,-460.0,0.00016438,2]
[372906740,1752802233054,-460.0,0.00016438,2]
[372906741,1752802233063,-460.0,0.00016438,2]
[372906742,1752802233073,-460.0,0.00016438,2]
[372906743,1752802233083,-460.0,0.00016438,2]
[372906744,1752802233093,-460.0,0.00016438,2]
[372906745,1752802233106,-460.0,0.00016438,2]
[372906746,1752802233116,-460.0,0.00016438,2]
[372906747,1752802233126,-460.78223327,0.00016438,2]
[372906748,1752802233136,-441.77260675,0.00016438,2]
[372906749,1752802233146,-460.0,0.00016438,2]
[372906750,1752802233155,-367.30025065,0.00016438,2]
[372906751,1752802233164,-460.0,0.00016438,2]
[372906752,1752802233174,-460.0,0.00016438,2]
[372906753,1752802233183,-460.0,0.00016438,2]
[372906754,1752802233193,-461.90561953,0.00016438,2]
[372906755,1752802233202,-460.0,0.00016438,2]
[372906756,1752802233212,-460.0,0.00016438,2]
[372906757,1752802233221,-460.0,0.00016438,2]
[372906758,1752802233231,-460.0,0.00016438,2]
[372906759,1752802233241,-460.0,0.00016438,2]
[372906760,1752802233252,-460.85723867,0.00016438,2]
[372906761,1752802233263,-460.0,0.00016438,2]
[372906762,1752802233272,-496.52021521,0.00016438,2]
[372906763,1752802233282,-460.0,0.00016438,2]
[372906764,1752802233292,-460.0,0.00016438,2]
[372906765,1752802233302,-460.0,0.00016438,2]
[372906766,1752802233312,-460.0,0.00016438,2]
[372906767,1752802233321,-460.0,0.00016438,2]
[372906768,1752802233332,-460.0,0.00016438,2]
[372906769,1752802233341,-468.37553705,0.00016438,2]
[372906770,1752802233355,-460.0,0.00016438,2]
[372906771,1752802233364,-460.0,0.00016438,2]
[372906772,1752802233374,-460.0,0.00016438,2]
[372906773,1752802233383,-460.0,0.00016438,2]
[372906774,1752802233393,-460.0,0.00016438,2]
[372906775,1752802233402,-460.0,0.00016438,2]
[372906776,1752802233411,-460.0,0.00016438,2]
[372906777,1752802233421,-460.0,0.00016438,2]
[372906778,1752802233430,-460.0,0.00016438,2]
[372906779,1752802233439,-460.0,0.00016438,2]
[372906780,1752802233449,-460.0,0.00016438,2]
[372906781,1752802233458,-460.0,0.00016438,2]
[372906782,1752802233467,-460.0,0.00016438,2]
[372906783,1752802233477,-460.0,0.00016438,2]
[372906784,1752802233486,-460.0,0.00016438,2]
[372906785,1752802233495,-460.0,0.00016438,2]
[372906786,1752802233505,-460.0,0.00016438,2]
[372906787,1752802233514,-460.0,0.00016438,2]
[372906788,1752802233524,-460.0,0.00016438,2]
[372906789,1752802233533,-460.0,0.00016438,2]
[372906791,1752802233543,-460.0,0.00016438,2]
[372906792,1752802233553,-460.0,0.00016438,2]
[372906793,1752802233563,-460.0,0.00016438,2]
[372906794,1752802233572,-460.0,0.00016438,2]
[372906796,1752802233582,-460.0,0.00016438,2]
[372906797,1752802233592,-460.0,0.00016438,2]
[372906798,1752802233603,-460.0,0.00016438,2]
[372906800,1752802233613,-460.0,0.00016438,2]
[372906802,1752802233623,-460.0,0.00016438,2]
[372906804,1752802233633,-460.0,0.00016438,2]
[372906806,1752802233645,-460.0,0.00016438,2]
[372906808,1752802233655,-460.0,0.00016438,2]
[372906810,1752802233665,-460.0,0.00016438,2]
[372906823,1752802233774,-450.30729279,0.00016438,2]
[372906826,1752802233813,-460.0,0.00016438,2]
[372906828,1752802233822,-460.0,0.00016438,2]
[372906830,1752802233832,-460.0,0.00016438,2]
[372906831,1752802233842,-460.0,0.00016438,2]
[372906833,1752802233854,-460.0,0.00016438,2]
[372906835,1752802233863,-460.0,0.00016438,2]
[372906838,1752802233873,-460.0,0.00016438,2]
[372906839,1752802233883,-460.0,0.00016438,2]
[372906840,1752802233893,-460.0,0.00016438,2]
[372906841,1752802233902,-460.0,0.00016438,2]
[372906843,1752802233911,-460.0,0.00016438,2]
[372906844,1752802233920,-460.0,0.00016438,2]
[372906846,1752802233930,-460.0,0.00016438,2]
[372906848,1752802233939,-460.0,0.00016438,2]
[372906849,1752802233949,-460.0,0.00016438,2]
[372906851,1752802233958,-460.0,0.00016438,2]
[372906852,1752802233967,-460.0,0.00016438,2]
[372906853,1752802233978,-460.0,0.00016438,2]
[372906855,1752802233987,-460.0,0.00016438,2]
[372906856,1752802233996,-460.0,0.00016438,2]
[372906857,1752802234006,-460.0,0.00016438,2]
[372906858,1752802234015,-460.0,0.00016438,2]
[372906859,1752802234025,-460.0,0.00016438,2]
[372906860,1752802234034,-460.0,0.00016438,2]
[372906861,1752802234044,-383.27551294,0.00016438,2]
[372906862,1752802234053,-460.0,0.00016438,2]
[372906863,1752802234062,-460.0,0.00016438,2]
[372906864,1752802234071,-460.0,0.00016438,2]
[372906865,1752802234080,-460.0,0.00016438,2]
[372906866,1752802234090,-460.0,0.00016438,2]
[372906867,1752802234102,-197.58016673,0.00016438,2]
[372906868,1752802234111,-460.0,0.00016438,2]
[372906869,1752802234120,-460.0,0.00016438,2]
[372906870,1752802234129,-460.0,0.00016438,2]
[372906871,1752802234139,-460.0,0.00016438,2]
[372906872,1752802234148,-460.29477423,0.00016438,2]
[372906873,1752802234157,-460.0,0.00016438,2]
[372906874,1752802234167,-460.0,0.00016438,2]
[372906875,1752802234176,-460.0,0.00016438,2]
[372906876,1752802234185,-460.0,0.00016438,2]
[372906877,1752802234194,-460.0,0.00016438,2]
[372906878,1752802234204,-460.0,0.00016438,2]
[372906879,1752802234213,-460.0,0.00016438,2]
[372906880,1752802234223,-460.0,0.00016438,2]
[372906881,1752802234232,-460.0,0.00016438,2]
[372906882,1752802234242,-460.0,0.00016438,2]
[372906883,1752802234253,-460.0,0.00016438,2]
[372906884,1752802234264,-460.0,0.00016438,2]
[372906885,1752802234274,-460.0,0.00016438,2]
[372906886,1752802234283,-460.0,0.00016438,2]
[372906887,1752802234293,-460.0,0.00016438,2]
[372906888,1752802234302,-460.0,0.00016438,2]
[372906889,1752802234312,-460.0,0.00016438,2]
[372906890,1752802234321,-460.0,0.00016438,2]
[372906891,1752802234332,-460.0,0.00016438,2]
[372906892,1752802234341,-461.0986113,0.00016438,2]
[372906893,1752802234354,-460.0,0.00016438,2]
[372906894,1752802234363,-500.0,0.00016438,2]
[372906895,1752802234372,-500.0,0.00016438,2]
[372906896,1752802234381,-500.0,0.00016438,2]
[372906897,1752802234391,-500.0,0.00016438,2]
[372906898,1752802234400,-460.0,0.00016438,2]
[372906899,1752802234410,-460.0,0.00016438,2]
[372906900,1752802234419,-460.0,0.00016438,2]
[372906901,1752802234429,-460.0,0.00016438,2]
[372906902,1752802234439,-460.0,0.00016438,2]
[372906903,1752802234449,-460.0,0.00016438,2]
[372906904,1752802234458,-460.0,0.00016438,2]
[372906905,1752802234468,-460.0,0.00016438,2]
[372906906,1752802234477,-539.6182397,0.00016438,2]
[372906907,1752802234486,-460.0,0.00016438,2]
[372906908,1752802234495,-460.0,0.00016438,2]
[372906909,1752802234505,-460.0,0.00016438,2]
[372906910,1752802234514,-460.0,0.00016438,2]
[372906911,1752802234523,-460.0,0.00016438,2]
[372906912,1752802234533,-2490.18,0.00016438,2]
[372906913,1752802234543,-460.0,0.00016438,2]
[372906914,1752802234552,-461.15651381,0.00016438,2]
[372906915,1752802234562,-460.0,0.00016438,2]
[372906916,1752802234571,-549.37573095,0.00016438,2]
[372906917,1752802234580,-460.0,0.00016438,2]
[372906918,1752802234590,-460.0,0.00016438,2]
[372906919,1752802234601,-460.0,0.00016438,2]
[372906920,1752802234610,-571.63442734,0.00016438,2]
[372906921,1752802234619,-467.75,0.00016438,2]
[372906922,1752802234629,-460.0,0.00016438,2]
[372906923,1752802234638,-460.0,0.00016438,2]
[372906924,1752802234647,-460.0,0.00016438,2]
[372906925,1752802234656,-460.0,0.00016438,2]
[372906926,1752802234666,-460.0,0.00016438,2]
[372906927,1752802234675,-460.0,0.00016438,2]
[372906928,1752802234685,-460.0,0.00016438,2]
[372906929,1752802234695,-460.0,0.00016438,2]
[372906930,1752802234705,-510.10745834,0.00016438,2]
[372906931,1752802234714,-460.0,0.00016438,2]
[372906932,1752802234724,-460.0,0.00016438,2]
[372906933,1752802234734,-1449.14,0.00016438,2]
[372906934,1752802234744,-461.68340292,0.00016438,2]
[372906935,1752802234753,-460.0,0.00016438,2]
[372906936,1752802234763,-460.0,0.00016438,2]
[372906937,1752802234772,-460.65013379,0.00016438,2]
[372906938,1752802234781,-460.0,0.00016438,2]
[372906939,1752802234790,-460.0,0.00016438,2]
[372906940,1752802234800,-460.0,0.00016438,2]
[372906941,1752802234809,-326.0643791,0.00016438,2]
[372906942,1752802234818,-460.0,0.00016438,2]
[372906943,1752802234827,-716.13,0.00016438,2]
[372906944,1752802234837,-780.89,0.00016438,2]
[372906945,1752802234849,-460.0,0.00016438,2]
[372906946,1752802234859,-460.0,0.00016438,2]
[372906947,1752802234869,-605.7731146,0.00016438,2]
[372906948,1752802234878,-460.0,0.00016438,2]
[372906949,1752802234887,-460.0,0.00016438,2]
[372906950,1752802234896,-405.64894382,0.00016438,2]
[372906951,1752802234906,-460.0,0.00016438,2]
[372906952,1752802234916,-460.0,0.00016438,2]